bitfinex/quotes_SOLUSD_20240622
["timestamp","ask_amount","ask_price","bid_price","bid_amount"]
[1719056299314,33.9549,134.32,134.27,7.4474]
[1719056299912,6.51,134.3,134.25,15.7033]
[1719056300633,13.9563,134.3,134.25,23.152]
[1719056301006,6.51,134.3,134.26,7.4482]
[1719056301531,6.51,134.3,134.27,7.4475]
[1719056303025,6.51,134.3,134.28,7.447]
[1719056303215,20.0,134.32,134.28,7.447]
[1719056303413,26.51,134.32,134.28,7.447]
[1719056303607,26.51,134.32,134.29,7.4465]
[1719056303608,20.0,134.32,134.29,7.4465]
[1719056303813,6.51,134.32,134.29,7.4465]
[1719056304111,26.51,134.33,134.29,7.4465]
[1719056304439,33.9544,134.33,134.28,7.4469]
[1719056304818,6.51,134.32,134.28,7.4469]
[1719056305140,7.4455,134.31,134.26,13.9579]
[1719056305322,6.51,134.31,134.26,7.4479]
[1719056305721,6.51,134.3,134.26,7.4479]
[1719056305930,13.956,134.3,134.25,23.1518]
[1719056306312,13.956,134.3,134.25,15.7033]
[1719056306529,6.51,134.3,134.26,7.4482]
[1719056308642,6.51,134.3,134.27,7.4476]
[1719056309137,6.51,134.31,134.27,7.4476]
[1719056314056,6.51,134.31,134.26,7.448]
[1719056314544,20.0,134.33,134.25,15.7033]
[1719056314746,6.51,134.29,134.25,23.1519]
[1719056314926,6.51,134.29,134.25,15.3633]
[1719056315123,6.51,134.29,134.24,7.4491]
[1719056315320,6.51,134.29,134.23,6.51]
[1719056315321,6.51,134.28,134.23,7.4497]
[1719056315648,6.51,134.26,134.22,23.5158]
[1719056317549,6.51,134.26,134.23,7.4498]
[1719056318238,6.51,134.26,134.24,7.4492]
[1719056318437,6.51,134.27,134.24,7.4492]
[1719056318639,6.51,134.26,134.23,7.4497]
[1719056319629,7.4468,134.29,134.23,7.4497]
[1719056319831,6.51,134.27,134.24,7.4493]
[1719056320448,7.4456,134.31,134.25,7.4486]
[1719056320625,6.51,134.29,134.26,7.4482]
[1719056320825,6.51,134.29,134.22,16.0654]
[1719056320826,6.51,134.3,134.27,7.4476]
[1719056321024,6.51,134.31,134.27,7.4476]
[1719056321252,20.0,134.3,134.27,7.4476]
[1719056321448,20.0,134.3,134.26,7.448]
[1719056321854,26.51,134.3,134.26,7.448]
[1719056322034,20.0,134.3,134.26,7.448]
[1719056323338,26.51,134.3,134.25,7.6186]
[1719056323539,33.956,134.3,134.25,7.4486]
[1719056323942,26.51,134.3,134.25,7.4486]
[1719056324344,33.956,134.3,134.25,7.4486]
[1719056325567,27.446,134.3,134.25,7.4486]
[1719056326666,27.446,134.3,134.24,7.4491]
[1719056326882,6.51,134.29,134.24,7.4491]
[1719056327868,27.446,134.3,134.24,7.4491]
[1719056328166,27.446,134.3,134.25,7.4487]
[1719056328167,6.51,134.29,134.25,7.4487]
[1719056328371,26.51,134.3,134.25,7.4487]
[1719056328941,26.51,134.3,134.25,13.9587]
[1719056329844,6.51,134.3,134.25,13.9587]
[1719056331166,7.446,134.3,134.25,13.9587]
[1719056331547,13.9555,134.31,134.25,13.9587]
[1719056331747,13.9555,134.31,134.26,0.17]
[1719056332460,7.4455,134.31,134.26,0.17]
[1719056332665,13.9555,134.31,134.26,0.17]
[1719056337270,13.956,134.3,134.26,0.17]
[1719056338481,6.51,134.3,134.26,0.17]
[1719056339886,7.4456,134.31,134.26,7.6181]
[1719056340086,6.51,134.3,134.26,7.6181]
[1719056342669,6.51,134.3,134.24,6.51]
[1719056342670,6.51,134.29,134.25,7.4486]
[1719056342974,6.51,134.29,134.24,13.9593]
[1719056343168,6.51,134.29,134.25,7.4485]
[1719056343680,13.91469462,134.33,134.25,6.51]
[1719056343884,6.51,134.31,134.25,25.1305]
[1719056344071,20.0,134.32,134.27,7.4474]
[1719056344264,6.51,134.31,134.27,7.4474]
[1719056344466,20.0,134.32,134.27,7.4474]
[1719056344669,6.51,134.32,134.27,7.4474]
[1719056344994,20.0,134.31,134.27,7.4474]
[1719056345477,26.51,134.31,134.27,7.4474]
[1719056349966,26.51,134.31,134.26,23.5055]
[1719056350165,26.51,134.31,134.27,7.4474]
[1719056350570,20.0,134.31,134.27,7.4474]
[1719056351851,20.0,134.31,134.28,7.6169]
[1719056352028,27.4439,134.34,134.28,14.1269]
[1719056352340,33.9539,134.34,134.28,14.1269]
[1719056352510,20.0,134.34,134.29,6.51]
[1719056352715,20.0,134.34,134.3,0.7531437]
[1719056352914,20.0,134.34,134.3,7.2631437]
[1719056353126,13.9534,134.35,134.3,0.7531437]
[1719056353325,7.4434,134.35,134.3,7.2631437]
[1719056353545,7.4434,134.35,134.31,0.75308761]
[1719056353711,13.9534,134.35,134.31,0.75308761]
[1719056356045,7.4428,134.36,134.31,0.75308761]
[1719056356252,6.51,134.35,134.3,29.3912]
[1719056356437,7.4428,134.36,134.31,7.7854]
[1719056356750,6.51,134.35,134.31,7.7854]
[1719056359351,7.4423,134.37,134.31,7.7854]
[1719056359656,26.51,134.36,134.32,7.4448]
[1719056362460,20.0,134.36,134.31,14.2952]
[1719056362758,26.51,134.36,134.31,14.2952]
[1719056363866,20.0,134.36,134.32,6.51]
[1719056364068,20.0,134.36,134.32,13.9548]
[1719056367855,20.0,134.36,134.32,6.51]
[1719056368662,27.4428,134.36,134.32,6.51]
[1719056368837,33.9528,134.36,134.31,6.85]
[1719056369041,33.9528,134.36,134.31,0.34]
[1719056370365,33.9528,134.36,134.31,7.7853]
[1719056372961,26.51,134.36,134.3,15.2653]
[1719056373154,7.4436,134.35,134.3,15.2653]
[1719056373470,13.9538,134.34,134.3,15.2653]
[1719056373970,6.51,134.34,134.3,15.2653]
[1719056375658,6.51,134.34,134.3,22.7112]
[1719056377072,6.51,134.35,134.3,22.7112]
[1719056380272,6.51,134.34,134.3,22.7112]
[1719056384772,6.51,134.35,134.3,29.2212]
[1719056384981,6.51,134.35,134.3,22.7112]
[1719056388177,13.9532,134.35,134.3,22.7112]
[1719056388559,6.51,134.35,134.3,22.7112]
[1719056388765,6.51,134.35,134.31,0.17]
[1719056389964,7.4429,134.36,134.31,0.17]
[1719056390163,26.51,134.35,134.31,0.17]
[1719056392081,20.0,134.35,134.31,0.17]
[1719056394685,27.4433,134.35,134.31,0.17]
[1719056396888,33.9533,134.35,134.31,0.17]
[1719056401074,13.9533,134.35,134.31,0.17]
[1719056403192,7.4438,134.34,134.3,15.2653]
[1719056403376,7.4428,134.36,134.3,22.711]
[1719056403576,18.6052,134.38,134.3,22.711]
[1719056403577,6.51,134.34,134.3,22.711]
[1719056404500,6.51,134.34,134.3,15.2653]
[1719056404673,7.4433,134.35,134.3,22.7113]
[1719056404871,13.9533,134.35,134.3,22.7113]
[1719056405172,7.4429,134.36,134.3,22.7113]
[1719056405374,26.51,134.35,134.3,22.7113]
[1719056406082,13.954,134.34,134.3,15.2653]
[1719056410695,6.51,134.34,134.3,15.2653]
[1719056411709,20.0,134.35,134.31,7.4454]
[1719056411920,26.51,134.36,134.31,7.4454]
[1719056412421,26.51,134.36,134.32,7.4448]
[1719056412716,26.51,134.36,134.31,7.4452]
[1719056413611,33.9527,134.36,134.31,7.4452]
[1719056413803,6.51,134.35,134.3,29.221]
[1719056414119,20.0,134.36,134.3,15.2653]
[1719056414320,6.51,134.32,134.27,15.891]
[1719056415194,6.51,134.32,134.27,23.3383]
[1719056415910,6.51,134.31,134.27,23.3383]
[1719056416115,13.956,134.3,134.27,15.891]
[1719056416298,6.51,134.28,134.24,15.891]
[1719056416512,6.51,134.28,134.24,23.3403]
[1719056416696,6.51,134.28,134.24,15.891]
[1719056417113,6.51,134.26,134.24,15.891]
[1719056417316,6.51,134.25,134.2,23.3425]
[1719056417519,6.51,134.24,134.2,23.3425]
[1719056419605,6.51,134.24,134.21,7.4509]
[1719056420104,6.51,134.23,134.2,15.891]
[1719056421308,6.51,134.22,134.18,7.4525]
[1719056421510,20.0,134.22,134.18,7.4525]
[1719056421823,26.51,134.22,134.19,7.452]
[1719056422808,7.4483,134.26,134.2,7.4513]
[1719056423009,6.51,134.24,134.21,7.4509]
[1719056423424,20.0,134.23,134.21,7.4509]
[1719056424109,6.51,134.25,134.21,7.4509]
[1719056424311,6.51,134.25,134.19,6.51]
[1719056424312,20.0,134.26,134.2,0.17]
[1719056424509,20.0,134.26,134.23,7.4495]
[1719056424730,20.0,134.26,134.22,13.9601]
[1719056425105,20.0,134.26,134.22,7.4501]
[1719056426135,20.0,134.26,134.23,7.4498]
[1719056426826,20.0,134.26,134.24,7.4491]
[1719056427127,27.4466,134.29,134.24,7.4493]
[1719056427344,6.51,134.28,134.24,7.4493]
[1719056427532,20.0,134.27,134.23,13.9596]
[1719056428038,20.0,134.27,134.22,29.8512]
[1719056428246,26.51,134.27,134.22,29.8512]
[1719056428612,26.51,134.27,134.22,23.3412]
[1719056428833,6.51,134.25,134.22,15.891]
[1719056429415,6.51,134.25,134.22,23.3414]
[1719056429619,6.51,134.26,134.22,23.3414]
[1719056430344,6.51,134.26,134.21,7.4509]
[1719056430910,6.51,134.25,134.2,7.7913]
[1719056431125,6.51,134.25,134.2,13.9613]
[1719056431741,6.51,134.25,134.21,7.4508]
[1719056433918,6.51,134.24,134.21,7.4508]
[1719056434922,6.51,134.25,134.21,7.4508]
[1719056437342,6.51,134.25,134.22,7.4504]
[1719056438041,6.51,134.26,134.22,7.4504]
[1719056438235,20.0,134.25,134.22,7.4504]
[1719056438539,6.51,134.26,134.22,7.4504]
[1719056438742,20.0,134.25,134.22,7.4504]
[1719056439237,20.0,134.25,134.15,34.7422]
[1719056439445,6.51,134.22,134.16,36.51]
[1719056439631,20.0,134.21,134.16,6.51]
[1719056439837,20.0,134.21,134.17,6.51]
[1719056440845,20.0,134.21,134.18,7.4525]
[1719056447126,20.0,134.22,134.18,7.4525]
[1719056450845,20.0,134.22,134.17,13.963]
[1719056450846,27.4505,134.22,134.17,13.963]
[1719056451045,33.9605,134.22,134.17,13.963]
[1719056452646,26.51,134.22,134.17,13.963]
[1719056455749,26.51,134.22,134.18,7.4526]
[1719056455956,20.0,134.22,134.19,0.17]
[1719056456331,7.4495,134.24,134.19,0.17]
[1719056456636,7.4488,134.25,134.2,6.51]
[1719056456836,33.9595,134.24,134.19,14.3018]
[1719056457057,33.9595,134.24,134.2,13.9615]
[1719056457058,20.0,134.24,134.2,13.9615]
[1719056458049,20.0,134.24,134.19,0.34]
[1719056458050,27.4497,134.24,134.19,0.34]
[1719056458252,27.4497,134.24,134.19,14.3019]
[1719056458635,20.0,134.24,134.2,6.51]
[1719056459439,7.4472,134.28,134.22,7.45]
[1719056459757,7.4472,134.28,134.24,6.51]
[1719056460841,20.0,134.27,134.24,6.51]
[1719056461358,13.9568,134.29,134.24,6.51]
[1719056461667,13.9568,134.29,134.23,14.2997]
[1719056461862,27.4471,134.28,134.23,14.2997]
[1719056464363,6.51,134.25,134.19,22.8939]
[1719056464547,20.0,134.24,134.19,29.4039]
[1719056465149,20.0,134.24,134.2,6.51]
[1719056465357,20.0,134.24,134.2,13.9615]
[1719056465664,20.0,134.24,134.21,0.34]
[1719056467750,20.0,134.24,134.21,7.7909]
[1719056470851,20.0,134.25,134.21,0.34]
[1719056472950,26.51,134.25,134.21,0.34]
[1719056474856,20.0,134.25,134.21,0.34]
[1719056475070,13.9586,134.26,134.21,0.34]
[1719056475257,20.0,134.25,134.21,0.34]
[1719056476354,27.4488,134.25,134.21,0.34]
[1719056476870,33.9588,134.25,134.21,0.34]
[1719056478976,33.9588,134.25,134.17,118.6329]
[1719056478977,37.2185,134.25,134.14,33.779]
[1719056479275,6.51,134.2,134.15,13.964]
[1719056479489,13.9616,134.2,134.15,6.51]
[1719056479691,13.9616,134.2,134.15,13.9642]
[1719056479978,7.4516,134.2,134.15,13.9642]
[1719056480154,13.9611,134.21,134.15,13.9642]
[1719056480358,13.9611,134.21,134.16,0.17]
[1719056480570,13.9611,134.21,134.16,0.34]
[1719056481071,13.9611,134.21,134.16,7.7937]
[1719056482776,6.51,134.21,134.16,7.7937]
[1719056484868,6.51,134.21,134.16,7.6237]
[1719056485185,13.961,134.21,134.16,7.6237]
[1719056485873,6.51,134.22,134.17,6.68]
[1719056486081,20.0,134.21,134.18,7.6224]
[1719056486285,20.0,134.21,134.17,14.133]
[1719056486877,20.0,134.21,134.17,7.623]
[1719056487073,20.0,134.21,134.17,7.453]
[1719056487273,26.51,134.21,134.17,7.453]
[1719056489597,20.0,134.21,134.18,7.4525]
[1719056491092,20.0,134.21,134.17,13.963]
[1719056492699,20.0,134.21,134.17,6.51]
[1719056493090,26.51,134.21,134.16,14.3035]
[1719056493292,26.51,134.21,134.17,0.17]
[1719056496298,26.51,134.21,134.17,7.6232]
[1719056496887,20.0,134.21,134.17,7.6232]
[1719056497690,20.0,134.21,134.18,0.17]
[1719056498993,20.0,134.21,134.18,7.6226]
[1719056500089,20.0,134.21,134.18,0.17]
[1719056505810,20.0,134.21,134.18,7.6224]
[1719056506010,26.51,134.22,134.18,7.6224]
[1719056506196,26.51,134.22,134.18,0.17]
[1719056510514,20.0,134.22,134.18,0.17]
[1719056510701,26.51,134.22,134.18,0.17]
[1719056515613,20.0,134.22,134.18,0.17]
[1719056515803,26.51,134.22,134.18,0.17]
[1719056517299,26.51,134.22,134.18,7.6226]
[1719056518914,20.0,134.22,134.18,7.6226]
[1719056521020,27.4505,134.22,134.16,7.4534]
[1719056521314,6.51,134.21,134.17,7.4528]
[1719056521517,27.4505,134.22,134.17,7.4528]
[1719056521518,20.0,134.2,134.17,7.4528]
[1719056522095,20.0,134.21,134.17,7.4528]
[1719056522322,20.0,134.21,134.16,13.9637]
[1719056522506,26.51,134.21,134.16,13.9637]
[1719056523422,26.51,134.21,134.17,7.623]
[1719056523712,10.7149,134.2,134.09,41.5605]
[1719056523912,6.51,134.18,134.12,6.51]
[1719056524117,13.9629,134.18,134.12,13.9656]
[1719056524313,6.51,134.17,134.12,13.9656]
[1719056524519,6.51,134.17,134.13,7.4553]
[1719056524706,13.9629,134.18,134.13,7.4553]
[1719056525296,37.50346933,134.31,134.16,7.4537]
[1719056525297,6.4292,134.23,134.16,7.4537]
[1719056525496,6.51,134.21,134.16,6.51]
[1719056525709,20.0,134.2,134.15,13.9641]
[1719056527122,33.9615,134.2,134.15,13.9641]
[1719056527427,27.4515,134.2,134.15,13.9641]
[1719056527597,33.9615,134.2,134.15,13.9641]
[1719056529223,27.4515,134.2,134.15,13.9641]
[1719056529521,33.9615,134.2,134.15,13.9641]
[1719056529719,7.4511,134.21,134.16,7.6237]
[1719056529925,13.9611,134.21,134.16,7.7937]
[1719056530099,7.4511,134.21,134.16,14.3037]
[1719056530513,13.9606,134.22,134.16,14.3037]
[1719056530709,7.451,134.21,134.16,14.3037]
[1719056530906,13.961,134.21,134.16,14.3037]
[1719056531318,13.961,134.21,134.16,7.7937]
[1719056533510,6.51,134.21,134.16,7.7937]
[1719056533713,6.51,134.21,134.17,7.4532]
[1719056535411,7.4506,134.22,134.17,7.4532]
[1719056535711,6.51,134.21,134.17,7.4532]
[1719056540203,6.51,134.21,134.18,7.4524]
[1719056540408,6.51,134.21,134.16,0.34]
[1719056540810,6.51,134.21,134.17,7.453]
[1719056541928,6.51,134.2,134.16,7.7936]
[1719056542233,6.51,134.2,134.16,0.17]
[1719056542531,6.51,134.2,134.15,7.4541]
[1719056543033,6.51,134.19,134.16,7.4537]
[1719056547928,7.4512,134.21,134.16,7.4537]
[1719056548126,6.51,134.19,134.16,7.4537]
[1719056550240,6.51,134.2,134.16,7.4537]
[1719056550716,6.51,134.2,134.17,7.453]
[1719056550916,6.51,134.21,134.18,7.4523]
[1719056551533,6.51,134.22,134.18,7.4523]
[1719056551746,6.51,134.22,134.19,7.452]
[1719056552134,8.96916365,134.27,134.2,0.17]
[1719056552324,6.51,134.26,134.2,6.85]
[1719056553038,6.51,134.26,134.22,7.4503]
[1719056553431,6.51,134.26,134.21,7.4508]
[1719056553941,13.9584,134.26,134.21,7.4508]
[1719056555041,13.9584,134.26,134.21,13.9608]
[1719056555222,13.9584,134.26,134.2,14.3013]
[1719056556930,6.51,134.25,134.2,14.3013]
[1719056557944,13.9588,134.25,134.2,14.3013]
[1719056559554,6.51,134.25,134.2,6.85]
[1719056559735,7.4483,134.26,134.21,7.451]
[1719056559931,6.51,134.25,134.21,7.451]
[1719056560236,13.9583,134.26,134.21,7.451]
[1719056564960,13.9583,134.26,134.2,14.3013]
[1719056566253,13.9583,134.26,134.21,7.4509]
[1719056567255,7.4488,134.25,134.2,14.3014]
[1719056567458,13.9588,134.25,134.2,14.3014]
[1719056568262,6.51,134.25,134.2,14.3014]
[1719056570550,6.51,134.25,134.21,7.4509]
[1719056575269,13.9584,134.26,134.21,7.4509]
[1719056575868,6.51,134.25,134.21,7.4509]
[1719056576549,6.51,134.25,134.2,6.85]
[1719056576550,13.9588,134.25,134.2,0.34]
[1719056576743,6.51,134.24,134.19,6.85]
[1719056576950,6.51,134.24,134.19,6.51]
[1719056577970,13.9588,134.25,134.2,7.4514]
[1719056580677,13.9599,134.23,134.18,7.4522]
[1719056580875,6.51,134.22,134.18,7.4522]
[1719056581675,6.51,134.22,134.19,7.452]
[1719056581978,6.51,134.22,134.18,7.4524]
[1719056582171,6.51,134.21,134.18,7.4524]
[1719056583275,6.51,134.22,134.18,7.4524]
[1719056585681,6.51,134.22,134.19,7.4519]
[1719056585875,6.51,134.23,134.19,7.4519]
[1719056586176,6.51,134.23,134.2,7.4514]
[1719056586380,6.51,134.23,134.19,7.4518]
[1719056588175,13.9599,134.23,134.18,13.9625]
[1719056588380,7.4499,134.23,134.18,13.9625]
[1719056588581,24.6743,134.24,134.19,13.962]
[1719056588770,24.6743,134.24,134.19,7.452]
[1719056588960,18.1643,134.24,134.19,13.962]
[1719056590374,7.4494,134.24,134.19,13.962]
[1719056590962,7.4499,134.23,134.18,7.4525]
[1719056591279,7.4499,134.23,134.19,6.85]
[1719056594181,7.4499,134.23,134.19,0.34]
[1719056596092,7.4499,134.23,134.19,6.85]
[1719056596471,7.4495,134.24,134.19,6.85]
[1719056596777,7.4499,134.23,134.19,0.34]
[1719056596975,7.4499,134.23,134.19,6.85]
[1719056597989,7.4499,134.23,134.19,0.34]
[1719056601389,13.9595,134.24,134.19,7.792]
[1719056601686,13.9595,134.24,134.19,14.302]
[1719056602191,7.4495,134.24,134.19,14.302]
[1719056602877,7.4499,134.23,134.19,6.85]
[1719056603479,13.9594,134.24,134.19,6.85]
[1719056603675,6.51,134.24,134.19,6.85]
[1719056603890,6.51,134.24,134.19,0.34]
[1719056604890,7.45,134.23,134.19,0.34]
[1719056607401,13.9595,134.24,134.19,7.792]
[1719056607900,7.4495,134.24,134.19,7.792]
[1719056609090,7.4495,134.24,134.19,14.302]
[1719056615094,7.4495,134.24,134.19,7.792]
[1719056618699,7.4495,134.24,134.2,7.4515]
[1719056619092,7.4495,134.24,134.19,7.7918]
[1719056623998,7.4489,134.25,134.2,23.0274]
[1719056624187,7.4493,134.24,134.2,23.0274]
[1719056624589,7.4493,134.24,134.2,15.576]
[1719056629212,7.4499,134.23,134.2,15.576]
[1719056629707,13.9595,134.24,134.2,15.576]
[1719056631516,6.51,134.24,134.2,23.0274]
[1719056634492,13.9589,134.25,134.2,23.0274]
[1719056641428,7.4489,134.25,134.2,23.0274]
[1719056641929,13.9589,134.25,134.2,23.0274]
[1719056642303,7.4489,134.25,134.2,23.0274]
[1719056642810,13.9589,134.25,134.2,23.0274]
[1719056643908,7.4489,134.25,134.2,23.0274]
[1719056644114,13.9589,134.25,134.2,23.0274]
[1719056647837,29.3351,134.27,134.2,23.0274]
[1719056647838,7.4483,134.26,134.21,7.4509]
[1719056648017,20.0,134.25,134.21,7.4509]
[1719056648225,20.0,134.25,134.21,13.9609]
[1719056648733,7.4478,134.27,134.22,7.4502]
[1719056649034,27.4484,134.26,134.22,6.51]
[1719056649811,27.4484,134.26,134.21,13.9608]
[1719056650426,7.4484,134.26,134.22,12.7108]
[1719056651933,18.6124,134.32,134.23,22.8707]
[1719056652114,6.51,134.3,134.25,6.51]
[1719056652946,7.4467,134.29,134.25,6.51]
[1719056653731,7.4461,134.3,134.25,13.9587]
[1719056653925,13.9561,134.3,134.25,7.4487]
[1719056654234,13.9561,134.3,134.24,14.1291]
[1719056654436,13.9561,134.3,134.25,0.17]
[1719056655719,13.9561,134.3,134.25,7.6186]
[1719056658218,6.51,134.29,134.25,7.6186]
[1719056658614,18.6124,134.32,134.23,30.15]
[1719056658615,13.9573,134.28,134.23,30.15]
[1719056658928,6.51,134.27,134.23,23.64]
[1719056659131,6.51,134.28,134.23,30.15]
[1719056659343,6.51,134.28,134.24,7.4491]
[1719056662340,6.51,134.28,134.25,7.4487]
[1719056662945,6.51,134.29,134.25,7.4487]
[1719056663738,7.4456,134.31,134.26,7.4482]
[1719056664040,26.51,134.3,134.26,7.4482]
[1719056664419,27.446,134.3,134.25,7.4485]
[1719056664745,33.956,134.3,134.25,7.4485]
[1719056665241,13.9565,134.29,134.24,14.2991]
[1719056665829,6.51,134.29,134.25,7.4486]
[1719056672458,6.51,134.29,134.24,6.85]
[1719056672459,6.51,134.29,134.24,14.299]
[1719056672961,13.9566,134.29,134.24,14.299]
[1719056674061,6.51,134.29,134.25,7.4487]
[1719056680264,33.9561,134.3,134.25,7.4487]
[1719056681369,20.0,134.3,134.25,7.4487]
[1719056681573,7.4457,134.31,134.26,7.4482]
[1719056681776,20.0,134.3,134.26,7.4482]
[1719056681954,13.9557,134.31,134.26,7.4482]
[1719056682360,7.4457,134.31,134.26,7.4482]
[1719056682562,13.9557,134.31,134.26,7.4482]
[1719056682770,13.9557,134.31,134.26,13.9582]
[1719056683277,7.446,134.3,134.25,13.9585]
[1719056684070,13.956,134.3,134.25,13.9585]
[1719056686073,6.51,134.3,134.26,7.4481]
[1719056687377,7.4456,134.31,134.26,7.4481]
[1719056687587,13.9556,134.31,134.26,7.4481]
[1719056688677,13.9556,134.31,134.26,29.7712]
[1719056688966,7.446,134.3,134.26,22.3231]
[1719056689261,13.956,134.3,134.26,22.3231]
[1719056691875,6.51,134.3,134.26,29.7713]
[1719056692070,13.9556,134.31,134.26,29.7713]
[1719056693871,13.9556,134.31,134.26,36.2813]
[1719056694571,13.9556,134.31,134.26,29.7713]
[1719056696558,7.446,134.3,134.26,22.3231]
[1719056697059,7.4456,134.31,134.26,29.7712]
[1719056697247,13.9556,134.31,134.26,36.2812]
[1719056700956,7.4461,134.3,134.26,22.3231]
[1719056702373,7.4466,134.29,134.26,22.3231]
[1719056703169,13.9562,134.3,134.26,22.3231]
[1719056704179,7.4462,134.3,134.26,22.3231]
[1719056705185,13.9562,134.3,134.26,22.3231]
[1719056706653,6.51,134.3,134.26,22.3231]
[1719056706854,20.0,134.32,134.22,29.0204]
[1719056706855,20.0,134.29,134.22,29.0204]
[1719056707069,6.51,134.27,134.22,29.0204]
[1719056707379,6.51,134.26,134.22,29.0204]
[1719056707863,13.958,134.27,134.22,29.0204]
[1719056708058,7.448,134.27,134.22,29.0204]
[1719056708286,13.958,134.27,134.22,29.0204]
[1719056708663,6.51,134.27,134.22,29.0204]
[1719056709367,7.4465,134.29,134.24,7.4491]
[1719056709564,41.98229587,134.32,134.22,21.5701]
[1719056709565,6.51,134.25,134.22,21.5701]
[1719056709788,13.9588,134.25,134.22,15.1497]
[1719056710091,6.51,134.24,134.22,15.1497]
[1719056712376,6.51,134.25,134.22,15.1497]
[1719056714282,6.51,134.25,134.22,22.5999]
[1719056714687,7.4477,134.27,134.22,22.5999]
[1719056714992,20.0,134.26,134.23,7.4498]
[1719056717092,6.51,134.29,134.24,6.51]
[1719056717865,20.0,134.3,134.24,6.51]
[1719056718062,6.51,134.29,134.24,6.51]
[1719056718797,13.9566,134.29,134.24,13.9592]
[1719056719700,27.446,134.3,134.25,7.6185]
[1719056719899,27.446,134.3,134.25,14.1285]
[1719056722291,7.4465,134.29,134.25,6.68]
[1719056724094,27.446,134.3,134.26,15.7599]
[1719056724272,7.446,134.3,134.26,15.7599]
[1719056724893,7.446,134.3,134.26,22.2699]
[1719056725189,7.446,134.3,134.26,15.7599]
[1719056726297,13.9556,134.31,134.26,23.2081]
[1719056726483,13.9556,134.31,134.26,29.7181]
[1719056727683,21.4241,134.32,134.27,7.4476]
[1719056727907,21.4241,134.32,134.27,20.3942]
[1719056729697,7.4455,134.31,134.27,12.9466]
[1719056734106,279.0048,134.38,134.27,6.4366]
[1719056734295,6.51,134.35,134.3,6.51]
[1719056734503,7.4435,134.35,134.3,6.51]
[1719056734812,7.4435,134.35,134.3,13.9558]
[1719056734985,13.9535,134.35,134.3,13.9558]
[1719056736402,7.4427,134.36,134.31,7.4453]
[1719056736592,33.9522,134.37,134.32,7.4448]
[1719056736795,27.4422,134.37,134.33,0.17]
[1719056736994,7.4422,134.37,134.33,0.17]
[1719056737916,7.4422,134.37,134.33,16.7378]
[1719056738889,13.9522,134.37,134.33,16.7378]
[1719056739285,13.9522,134.37,134.33,16.5678]